Cogmind - Beta 15 @@@ ROGUE MODE // 2025.08.26 @ 00:05:58 Player: Naughtyusername Result: Escaped! Performance ------------- Evolutions (9) 4500 Regions Visited (18) 3600 Robots Destroyed (131) 655 Value Destroyed (4791) 4791 Prototype IDs (35) 700 Alien Tech Used (0) 0 Bonus (6961) 6961 TOTAL SCORE: 21207 Bonus ------- High Alert Combat Kills 296 Follower Combat Kills 1565 Network Hubs Disabled 200 Registered with UFD 300 Met Optimus in HQ 500 Built Enhanced Grunts 300 A7 Reached Mainframe 300 Met R17 at Cetus 500 Win 3000 Cogmind --------- Core Integrity 248/1600 Matter 165/300 Energy 93/100 System Corruption 4% Temperature Cool (0) Movement Core (50) Location To Epsilon Eridani Parts ------- > --- POWER (2) -------- (None) > --- PROPULSION (10) -- (None) > --- UTILITY (10) ----- (None) > --- WEAPON (3) ------- (None) > --- INVENTORY (5) ---- (None) Peak State ------------ > --- POWER ------------ Cold Fusion Reactor Quantum Reactor > --- PROPULSION ------- Centrium Heavy Treads Centrium Heavy Treads Centrium Heavy Treads > --- UTILITY ---------- Medium Storage Unit Weapon Mount Core Analyzer Centrium Medium Armor Plating Medium Reflective Plating Advanced Shield Generator > --- WEAPON ----------- Advanced KE Penetrator Advanced KE Penetrator Mass Driver > --- INVENTORY -------- Deep Structural Scanner Enhanced Optical Array Advanced Sensor Array Advanced Terrain Scanner High-powered Tractor Beam Mapping Drone Bay Variable Charge Gun Hypervelocity Gauss Cannon Heavy Shock Bomb Launcher Remote Datajack [Rating: 125] Favorites ----------- Power Quantum Reactor Engine Improved Ion Engine Power Core Light Nuclear Core Reactor Quantum Reactor Propulsion Centrium Heavy Treads Treads Centrium Heavy Treads Leg Aluminum Leg Wheel Compact Wheel Hover Unit Improved Hover Unit Flight Unit Field Propulsion Array Utility Medium Storage Unit Device Weapon Mount Storage Medium Storage Unit Processor Core Analyzer Hackware Hacking Suite Protection Centrium Medium Armor Plating Weapon Advanced KE Penetrator Energy Gun Small Laser Energy Cannon Heavy Ion Cannon Ballistic Gun Advanced KE Penetrator Ballistic Cannon Heavy Flak Cannon Launcher Heavy Shock Bomb Launcher Special Weapon Remote Datajack Impact Weapon Heavy Hammer Slashing Weapon Power Sword Piercing Weapon Force Lance Build | -11 -10 -9 -8 -8 -8 -8 -6 -6 -6 -6 -6 -5 -5 -5 -4 -3 -2 -1 ------- Run | Yrd Mat Mat Mat Sto Rec Scr Fac Ext Cet Arc Hub Fac Was Fac Fac Res Res Acc Slots Evolved 18 | . . 2 2 . . . 4 . . . . 2 . . 2 2 2 2 Power 1 | . . . . . . . . . . . . 1 . . . . . . Propulsion 8 | . . 1 1 . . . 2 . . . . . . . 1 1 2 . Utility 8 | . . 1 1 . . . 2 . . . . . . . 1 1 . 2 Weapon 1 | . . . . . . . . . . . . 1 . . . . . . Parts Attached 192 | 7 8 22 5 4 7 9 23 20 12 . 1 27 1 . 5 15 5 21 Power 22 | 1 2 2 1 . . 2 1 3 2 . . 4 . . . 1 1 2 Engine 7 | 1 2 2 . . . 1 . . . . . 1 . . . . . . Core 7 | . . . 1 . . 1 . 3 . . . 2 . . . . . . Reactor 8 | . . . . . . . 1 . 2 . . 1 . . . 1 1 2 Propulsion 54 | 2 2 8 2 . 2 1 8 8 5 . . 6 1 . 2 3 . 4 Treads 11 | . . . . . . . . 6 5 . . . . . . . . . Leg 15 | 2 2 5 . . . . . . . . . 5 . . 1 . . . Wheel 9 | . . . . . . . 7 2 . . . . . . . . . . Hover 9 | . . 3 2 . 2 1 1 . . . . . . . . . . . Flight 10 | . . . . . . . . . . . . 1 1 . 1 3 . 4 Utility 70 | 2 1 6 . 3 2 4 9 3 3 . . 11 . . 2 9 2 13 Device 28 | 1 . 1 . 2 . 2 2 1 . . . 6 . . 1 3 1 8 Storage 6 | 1 1 2 . . . . . . . . . 1 . . . 1 . . Processor 19 | . . 1 . 1 2 2 4 . . . . 1 . . 1 4 1 2 Hackware 6 | . . . . . . . 3 . . . . . . . . 1 . 2 Protection 11 | . . 2 . . . . . 2 3 . . 3 . . . . . 1 Artifact . | . . . . . . . . . . . . . . . . . . . Weapon 46 | 2 3 6 2 1 3 2 5 6 2 . 1 6 . . 1 2 2 2 Energy Gun 4 | 2 . . . . . . . . . . . 1 . . . 1 . . Energy Cannon 3 | . . . . . . . . . . . 1 . . . 1 . . 1 Ballistic Gun 13 | . 2 5 1 1 1 . . 1 2 . . . . . . . . . Ballistic Cannon 13 | . . . 1 . . 2 4 2 . . . 3 . . . . . 1 Launcher 7 | . 1 1 . . 2 . . . . . . 2 . . . . 1 . Special Weapon 1 | . . . . . . . . 1 . . . . . . . . . . Impact Weapon 2 | . . . . . . . 1 1 . . . . . . . . . . Slashing Weapon 2 | . . . . . . . . 1 . . . . . . . 1 . . Piercing Weapon 1 | . . . . . . . . . . . . . . . . . 1 . Special Melee Weapon . | . . . . . . . . . . . . . . . . . . . Unidentified Prototypes 12 | . . . . . . . 1 . 3 . . 2 . . 1 . 2 3 Corrupted Parts 3 | . . . . . . . . . 3 . . . . . . . . . System Corruption 17 | . . . . . . . . . 17 . . . . . . . . . Parts Lost 67 | . 2 5 2 . 2 . 9 11 . . . 13 1 . 11 . 3 8 Power 8 | . 1 1 . . . . 1 1 . . . 2 . . 2 . . . Propulsion 28 | . 1 2 1 . 2 . 5 7 . . . 2 1 . 4 . 1 2 Utility 17 | . . 1 1 . . . 1 . . . . 3 . . 3 . 2 6 Weapon 14 | . . 1 . . . . 2 3 . . . 6 . . 2 . . . Highest Loss Streak 9 | . 1 4 2 . 2 . 4 9 . . . 4 1 . 9 . 2 5 To Critical Strikes 2 | . . 1 . . . . . . . . . 1 . . . . . . Average Backups 8 | . 3 10 8 9 9 9 7 9 10 9 8 8 4 4 4 4 9 8 Power . | . . . 1 1 1 . 1 1 1 1 1 . . . . . 1 1 Propulsion . | . . . 1 . . . . . . . . . . . . . . . Utility 4 | . . 4 1 3 3 6 5 6 7 6 5 5 4 4 3 3 3 4 Weapon 2 | . 2 5 4 4 4 2 1 1 1 1 1 1 . . . . 4 3 Tool/Special . | . . . . . . . . . . . . . . . . . . . Unused Backups 20 | . . 5 1 2 1 . 4 1 1 . . 3 . . . 1 . 1 Power 5 | . . 1 1 . . . 1 . 1 . . 1 . . . . . . Propulsion 1 | . . 1 . . . . . . . . . . . . . . . . Utility 13 | . . 2 . 2 1 . 3 1 . . . 2 . . . 1 . 1 Weapon 1 | . . 1 . . . . . . . . . . . . . . . . Tool/Special . | . . . . . . . . . . . . . . . . . . . Average Slot Usage (%) 76 | . 97 95 98 98 97 99 63 91 77 79 79 67 5 5 7 32 50 52 Engine 1 | . 13 10 3 . . . . . . . . . . . . . . . Core 1 | . . . 5 9 9 8 1 2 . . . . . . . . . . Reactor 2 | . . . . . . . 2 3 5 6 6 7 . . . 2 3 3 Treads 6 | . . . . . . . . 14 23 20 20 11 . . . . . . Leg 5 | . 27 28 . . . . . . . . . 6 . . . . . . Wheel 3 | . . . . . . . 3 18 . . . . . . . . . . Hover 6 | . . 2 36 36 33 36 8 . . . . . . . . . . . Flight 1 | . . . . . . . . . . . . . 2 5 1 8 12 11 Device 7 | . 13 2 9 14 9 12 8 3 . 5 10 9 . . . 6 7 10 Storage 6 | . 14 11 9 9 9 9 3 6 6 6 6 4 . . . . 4 3 Processor 9 | . . 10 9 11 18 13 9 13 13 13 13 3 1 . 2 9 17 12 Hackware 4 | . . . . . . . 15 13 2 . . . . . . . 4 7 Protection 3 | . . 8 7 . . . . 2 11 13 8 7 . . . . . . Energy Gun 1 | . 16 . . . . . . . . . . . . . 1 1 . . Ballistic Gun 6 | . 8 20 10 9 15 13 . 1 7 13 12 5 . . . . . . Ballistic Cannon 3 | . . . 7 9 1 4 7 8 4 . . 4 . . . . . . Peak Build Rating 125 | 7 7 16 23 25 28 31 47 49 111 116 116 125 15 15 22 74 86 112 Average Rating 51 | 5 6 12 21 23 25 29 33 45 98 115 111 95 6 15 8 49 71 81 On Entrance 38 | . 7 7 15 21 24 28 30 47 46 111 116 107 12 15 15 1 70 54 Naked Turns 283 | . . . . . . . . . . . . 43 115 . 91 15 . 19 Heaviest Build 96 | 12 30 34 26 26 28 27 39 42 59 60 60 96 . . 6 32 28 47 Greatest Support 240 | 20 20 30 28 28 30 30 84 123 240 240 240 240 15 15 15 30 30 52 Greatest Overweight (x) 9 | 3 3 1 1 . . . 9 3 . . . 3 . . . 1 . 1 Average Overweight (x) . | . . . . . . . . . . . . . . . . . . . Largest Inventory Capacity 15 | 8 15 15 10 10 10 10 10 10 10 10 10 15 5 5 5 10 10 10 Average Capacity 10 | 7 9 14 10 10 10 10 7 10 10 10 10 11 5 5 5 5 10 9 Most Carried 15 | 1 8 15 10 10 10 10 10 10 10 10 9 15 5 4 5 6 10 10 Average Carried 8 | . 3 10 8 9 9 9 7 9 9 9 8 8 4 4 4 4 9 8 Final Capacity 15 | 8 15 10 10 10 10 10 10 10 10 10 10 5 5 5 5 10 10 5 Final Carried 10 | 1 6 8 9 9 10 9 10 10 10 9 8 5 4 4 4 6 10 . Class Distribution -------------------- 33% | Mutant 28% | Scavenger-Mutant 12% | Commander-Mutant 9% | Hacker-Mutant 8% | Scavenger-Tank 3% | Hacker-Scout Dominant Class ---------------- Mutant | -10/Materials Scavenger-Mutant | -9/Materials Mutant | -8/Materials Mutant | -8/Storage Mutant | -8/Recycling Mutant | -8/Scraptown Hacker-Mutant | -6/Factory Scavenger-Mutant | -6/Extension Commander-Mutant | -6/Cetus Scavenger-Mutant | -6/Archives Scavenger-Mutant | -6/Hub_04(d) Scavenger-Tank | -5/Factory Mutant | -5/Waste Mutant | -5/Factory Mutant | -4/Factory Scout | -3/Research Mutant | -2/Research Hacker-Scout | -1/Access Resources | -11 -10 -9 -8 -8 -8 -8 -6 -6 -6 -6 -6 -5 -5 -5 -4 -3 -2 -1 ----------- Run | Yrd Mat Mat Mat Sto Rec Scr Fac Ext Cet Arc Hub Fac Was Fac Fac Res Res Acc Matter Collected 5713 | 270 346 603 51 165 410 140 425 993 207 81 54 1527 . . 49 114 . 278 Remotely 680 | . . . . 89 44 90 89 . . . . 368 . . . . . . Salvage Created 5914 | 173 402 571 51 165 752 . 329 655 61 292 130 1893 . . 73 114 . 253 Parts 270 | 13 18 39 3 14 24 . 17 24 3 10 8 80 . . 5 3 . 9 Haulers Intercepted 6 | . . 1 . 1 . . . 1 . . . . . . . 1 . 2 Recyclers Shooed 19 | . . . . 1 6 . 7 1 . . . 3 . . . . . 1 Parts Field Recycled . | . . . . . . . . . . . . . . . . . . . Retrieved Matter . | . . . . . . . . . . . . . . . . . . . Parts Self-Destructed . | . . . . . . . . . . . . . . . . . . . Prevented . | . . . . . . . . . . . . . . . . . . . Kills | -11 -10 -9 -8 -8 -8 -8 -6 -6 -6 -6 -6 -5 -5 -5 -4 -3 -2 -1 ------- Run | Yrd Mat Mat Mat Sto Rec Scr Fac Ext Cet Arc Hub Fac Was Fac Fac Res Res Acc Combat Hostiles Destroyed 85 | . 10 11 . 3 8 . 2 13 . 3 4 28 . . 3 . . . Melee 1 | . . . . . . . . 1 . . . . . . . . . . Guns 51 | . 10 10 . 2 2 . . . . 3 4 17 . . 3 . . . Cannons 22 | . . . . 1 . . 2 11 . . . 8 . . . . . . AOE 9 | . . 1 . . 6 . . 1 . . . 1 . . . . . . Classes Destroyed 15 | 3 3 3 . . 2 . 1 1 . . . 2 . . . . . . Worker 4 | 2 1 . . . . . . . . . . . . . . . . 1 Builder 9 | . 1 . . . 1 . 2 2 . . . 3 . . . . . . Tunneler 5 | 4 . . . . . . . . . . . . . . . . . 1 Hauler 6 | . . 1 . 1 . . . 1 . . . . . . . 1 . 2 Recycler 13 | 1 . . 1 . 5 . 2 1 . . . 3 . . . . . . Operator 4 | . . . . . . . 1 1 . . . 1 . . . . . 1 Watcher 3 | . . 1 . . . . . . . . 1 1 . . . . . . Swarmer 14 | . 3 1 . . 1 . . 2 . . 4 . . . 3 . . . Grunt 33 | . 7 5 . . 3 . . 5 . . . 13 . . . . . . Brawler 1 | . . . . . . . . . . . . 1 . . . . . . Protector 1 | . . . . . 1 . . . . . . . . . . . . . Sentry 17 | . . 5 . 3 1 . . 3 . 3 . 2 . . . . . . Hunter 1 | . . . . . . . . . . . . 1 . . . . . . Programmer 15 | . . . . . 2 . 2 1 . . . 10 . . . . . . Behemoth 3 | . . . . . . . . 2 . . . 1 . . . . . . Thug 2 | . . . . . . . . . 1 1 . . . . . . . . Best Kill Streak 11 | 3 3 2 1 3 11 . 4 5 . 2 5 8 . . 3 1 . 1 Combat Bots Only 6 | . 3 2 . 2 6 . 1 5 . 2 4 6 . . 3 . . . Max Kills in Single Turn 4 | 1 1 1 1 1 4 . 1 1 1 1 2 3 . . 1 1 . 1 Gunslinging . | . . . . . . . . . . . . . . . . . . . Exploded 3 | . . 1 . . 3 . . 1 . . . 1 . . . . . . Melee 1 | . . . . . . . . 1 . . . . . . . . . . Uniques/NPCs Destroyed . | . . . . . . . . . . . . . . . . . . . Combat | -11 -10 -9 -8 -8 -8 -8 -6 -6 -6 -6 -6 -5 -5 -5 -4 -3 -2 -1 -------- Run | Yrd Mat Mat Mat Sto Rec Scr Fac Ext Cet Arc Hub Fac Was Fac Fac Res Res Acc Hostile Shots Fired 1029 | . 53 75 19 22 15 . 113 126 1 7 29 246 10 1 137 . 40 135 Missed 366 | . 10 14 7 13 6 . 46 42 1 3 6 76 2 1 47 . 24 68 Hits 663 | . 43 61 12 9 9 . 67 84 . 4 23 170 8 . 90 . 16 67 Melee 10 | . . . . . . . . . . . . 2 8 . . . . . Projectile 653 | . 43 61 12 9 9 . 67 84 . 4 23 168 . . 90 . 16 67 AOE 2 | . . . . . . . 2 . . . . . . . . . . . Critical Strikes 28 | . . 3 . . . . . . . . 3 10 6 . 1 . 1 4 Part Disruptions 2 | . . . . . . . 1 . . . . . . . . . . 1 Actively Blocked 1 | . . . . . . . . . . . . . . . . . . 1 Damage Taken 12871 | . 507 806 143 168 190 . 1154 1485 75 104 451 3539 335 . 1537 . 414 1963 Core 4444 | . 129 173 40 . 45 . 348 405 . . 13 481 335 . 1069 . 54 1352 Absorbed by Shields 242 | . . . . . . . . 28 . . . 214 . . . . . . Reduced by Siege Mode 13 | . . . . . . . . . . . . 13 . . . . . . Redirected to Shielding 166 | . . 36 15 . . . . . . . . . . . . . . 115 Ignored by Resistances 88 | . . . . . . . . . . . . 88 . . . . . . Regen/Repaired (Parts) 123 | . . 19 . . . . 14 . . . . 90 . . . . . . Core Remaining (%) 53 | 100 48 56 . . . 84 . . . . 9 . . 18 7 100 96 15 Volleys Fired 378 | 19 39 60 6 11 24 . 33 63 3 9 8 86 . . 14 1 . 2 Largest 3 | 2 2 2 2 2 2 . 2 2 2 2 2 3 . . 2 1 . 1 Hottest 133 | 90 90 46 60 60 72 . 88 88 76 70 100 133 . . 90 94 . 120 Shots Fired 720 | 38 78 118 11 22 48 . 53 95 4 16 16 191 . . 27 1 . 2 Gun 448 | 38 78 117 5 11 40 . . 1 1 16 13 101 . . 26 1 . . Cannon 230 | . . . 6 11 2 . 53 67 3 . 3 82 . . 1 . . 2 Launcher 17 | . . 1 . . 6 . . 2 . . . 8 . . . . . . Special 25 | . . . . . . . . 25 . . . . . . . . . . Kinetic 570 | . 40 117 11 22 42 . 53 68 4 16 13 183 . . . . . 1 Thermal 108 | 38 38 . . . . . . . . . 3 . . . 27 1 . 1 Explosive 9 | . . 1 . . 6 . . 2 . . . . . . . . . . Electromagnetic 8 | . . . . . . . . . . . . 8 . . . . . . Robot Hit Streak 21 | 6 10 9 3 9 9 . 6 11 2 8 10 21 . . 8 . . . Robot Miss Streak 9 | 2 3 3 9 5 4 . 6 9 3 1 2 5 . . 5 . . . Penetration Max 1 | . . . . . . . . . 1 . 1 1 . . . . . . Secondary Targets 5 | . . 1 . . . . . . . . 2 . . . 2 . . . Max Gunslinging Chain 1 | . . 1 . . . . . . . . 1 . . . 1 . . . Shots Hit Robots 511 | 23 50 78 7 15 33 . 29 87 3 14 8 137 . . 17 3 . 7 Core Hits 300 | 8 20 24 5 13 27 . 27 88 3 8 5 60 . . 7 1 . 4 Critical Kills 15 | . . . . . . . . 1 1 2 1 10 . . . . . . Critical Parts Destroyed 22 | . . . . . 1 . . . 1 . . 20 . . . . . . Critical Strikes 53 | 1 1 . . . 1 . 2 2 2 2 1 40 . . . . . 1 Burn 2 | 1 1 . . . . . . . . . . . . . . . . . Destroy 40 | . . . . . 1 . . 1 2 2 1 33 . . . . . . Blast 9 | . . . . . . . 2 . . . . 7 . . . . . . Sever 1 | . . . . . . . . 1 . . . . . . . . . . Impale 1 | . . . . . . . . . . . . . . . . . . 1 Melee Attacks 30 | . . . . . . . 1 5 . . . . . . . 4 3 17 Impact 1 | . . . . . . . 1 . . . . . . . . . . . Slashing 10 | . . . . . . . . 5 . . . . . . . 4 1 . Piercing 19 | . . . . . . . . . . . . . . . . . 2 17 Sneak Attacks 5 | . . . . . . . . . . . . . . . . 1 . 4 Combat Hostiles . | . . . . . . . . . . . . . . . . . . . Follow-up Attacks . | . . . . . . . . . . . . . . . . . . . Damage Inflicted 12835 | 269 559 1062 80 279 1150 . 720 1973 108 413 346 4912 . . 178 200 . 586 Guns 5916 | 269 559 1013 22 110 466 . . 16 15 413 313 2560 . . 160 . . . Cannons 4326 | . . . 58 169 20 . 710 1548 93 . 28 1700 . . . . . . Explosions 1632 | . . 48 . . 664 . . 201 . . . 636 . . . . . 83 Melee 904 | . . . . . . . . 208 . . . . . . . 200 . 496 Ramming 57 | . . 1 . . . . 10 . . . 5 16 . . 18 . . 7 Kinetic 9497 | . 271 1013 80 279 486 . 710 1564 108 413 313 4260 . . . . . . Thermal 828 | 269 288 . . . . . . . . . 28 . . . 160 . . 83 Explosive 1008 | . . 48 . . 664 . . 201 . . . 95 . . . . . . Electromagnetic 541 | . . . . . . . . . . . . 541 . . . . . . Impact . | . . . . . . . . . . . . . . . . . . . Slashing 408 | . . . . . . . . 208 . . . . . . . 200 . . Piercing 496 | . . . . . . . . . . . . . . . . . . 496 Highest Corruption 27 | . . . . . . . 2 9 26 26 27 12 12 12 7 . 2 4 Average Corruption 8 | . . . . . . . 1 8 18 26 26 6 12 12 3 . 1 3 Corruption Purged . | . . . . . . . . . . . . . . . . . . . Corruption Blocked . | . . . . . . . . . . . . . . . . . . . Effects 189 | . . . . . . . 8 52 27 8 14 55 14 1 1 . 1 8 Message Errors 46 | . . . . . . . . 16 7 1 5 12 3 1 . . . 1 Matter Fused 38 | . . . . . . . . 13 5 . 2 12 2 . . . 1 3 Heat Flow Errors 30 | . . . . . . . 1 5 7 2 2 11 . . 1 . . 1 Energy Discharges 21 | . . . . . . . 3 5 2 . 1 7 . . . . . 3 Parts Rejected 3 | . . . . . . . 1 . . . 1 1 . . . . . . Parts Fused 2 | . . . . . . . . 1 1 . . . . . . . . . Data Loss (minor) 19 | . . . . . . . 1 7 3 2 . 5 1 . . . . . Data Loss (major) 8 | . . . . . . . . 4 . . . 3 1 . . . . . Misfires 5 | . . . . . . . 1 1 . . 1 2 . . . . . . Alerts 3 | . . . . . . . . . 2 1 . . . . . . . . Misdirections 8 | . . . . . . . . . . . 1 . 7 . . . . . Weapon Failures 6 | . . . . . . . 1 . . 2 1 2 . . . . . . Overload Shots . | . . . . . . . . . . . . . . . . . . . Overflow Damage 380 | . . 28 . . 101 . 14 12 . . . 79 . . . 35 . 111 Projectiles 93 | . . . . . . . 14 . . . . 79 . . . . . . Explosions 204 | . . 28 . . 101 . . 12 . . . . . . . . . 63 Melee 83 | . . . . . . . . . . . . . . . . 35 . 48 Knockbacks 60 | . . . 4 1 1 . 16 18 . . . 20 . . . . . . Impact . | . . . . . . . . . . . . . . . . . . . Kinetic 57 | . . . 4 1 1 . 16 16 . . . 19 . . . . . . Secondary 3 | . . . . . . . . 2 . . . 1 . . . . . . Self-Inflicted Damage 169 | . . . . . 59 . 4 . . . . 95 . . 8 . . 3 Shots 3 | . . . . . 1 . . . . . . 2 . . . . . . Rammed 13 | . . . . . . . 3 . . . 2 2 . . 4 . . 2 Targets Rammed 15 | . . 1 . . . . 3 . . . 2 3 . . 4 . . 2 Kicked 2 | . . 1 . . . . . . . . . 1 . . . . . . Crushed . | . . . . . . . . . . . . . . . . . . . Highest Temperature 662 | 126 462 26 17 20 20 . 66 245 231 268 128 662 . . 134 10 . 259 Average Temperature 103 | 48 138 6 9 9 9 . 28 69 84 107 51 148 . . 47 8 . 110 Received Heat Transfer 2210 | . 255 348 36 54 18 . 141 369 9 18 9 836 . . 18 . 54 45 Effects 27 | . 5 . . . . . . . . . . 22 . . . . . . Shutdowns 5 | . 1 . . . . . . . . . . 4 . . . . . . Energy Bleed 4 | . 1 . . . . . . . . . . 3 . . . . . . Matter Decay 3 | . . . . . . . . . . . . 3 . . . . . . Short Circuit 5 | . 2 . . . . . . . . . . 3 . . . . . . Damage (minor) 2 | . 1 . . . . . . . . . . 1 . . . . . . Damage (major) 7 | . . . . . . . . . . . . 7 . . . . . . Damage (core) 1 | . . . . . . . . . . . . 1 . . . . . . Siege Activations 1 | . . . . . . . . . . . . 1 . . . . . . Total Turns 14 | . . . . . . . . . . . . 14 . . . . . . Longest Duration 14 | . . . . . . . . . . . . 14 . . . . . . Martial Activations . | . . . . . . . . . . . . . . . . . . . Shielding Activations . | . . . . . . . . . . . . . . . . . . . Robots Disrupted . | . . . . . . . . . . . . . . . . . . . Combat Hostiles . | . . . . . . . . . . . . . . . . . . . Robots Corrupted 2 | . . . . . . . . . . . . 2 . . . . . . Combat Hostiles 2 | . . . . . . . . . . . . 2 . . . . . . Parts Fried 1 | . . . . . . . . . . . . 1 . . . . . . Impact Corruptions . | . . . . . . . . . . . . . . . . . . . Robots Melted . | . . . . . . . . . . . . . . . . . . . Combat Hostiles . | . . . . . . . . . . . . . . . . . . . Parts Melted 5 | 1 1 . . . . . . 1 . . . . . . 2 . . . Heat Transferred 2333 | 793 843 . . . . . . . . . 18 . . . 629 . . 50 Parts Sabotaged . | . . . . . . . . . . . . . . . . . . . Parts Stolen . | . . . . . . . . . . . . . . . . . . . Parts Stripped . | . . . . . . . . . . . . . . . . . . . Power Chain Reactions . | . . . . . . . . . . . . . . . . . . . Alert | -11 -10 -9 -8 -8 -8 -8 -6 -6 -6 -6 -6 -5 -5 -5 -4 -3 -2 -1 ------- Run | Yrd Mat Mat Mat Sto Rec Scr Fac Ext Cet Arc Hub Fac Was Fac Fac Res Res Acc Maximum Alert Level 3 | . . . . . 1 . . 1 1 . 2 3 1 . . . . 2 Low Security (%) 70 | 100 100 100 100 100 37 . 100 51 87 100 67 37 . 100 100 100 100 75 Level 1 17 | . . . . . 62 . . 48 12 . 26 9 100 . . . . 7 Level 2 6 | . . . . . . . . . . . 5 25 . . . . . 17 Level 3 5 | . . . . . . . . . . . . 27 . . . . . . Level 4 . | . . . . . . . . . . . . . . . . . . . Level 5 . | . . . . . . . . . . . . . . . . . . . High Security . | . . . . . . . . . . . . . . . . . . . Max Security . | . . . . . . . . . . . . . . . . . . . Peak Influence 966 | 10 91 84 25 137 270 . 77 351 236 153 457 966 338 145 75 38 43 549 Initial 338 | . . 4 25 . 53 . . 12 168 25 35 199 338 145 65 33 . 1 Average 168 | 1 31 37 8 45 193 . 17 156 139 102 177 454 275 140 23 12 11 128 Influence Increases 6494 | 35 272 437 20 191 414 . 334 949 362 188 613 1527 . . 196 24 90 842 Destroy 0b10 Robot/C 2280 | . 200 220 . 60 140 . 60 500 160 80 220 580 . . 60 . . . Destroy 0b10 Robot/NC 275 | 35 10 10 5 5 55 . 25 35 10 5 5 45 . . . 5 . 25 Destroy Leader 430 | . 40 84 . 32 . . 20 52 . . 42 144 . . 10 2 . 4 Allied During Kill 792 | . . . . . . . 2 258 170 85 251 26 . . . . . . Successful Hack 188 | . 7 44 . 19 19 . 17 10 9 . . 21 . . 6 . 36 . Select Force Hacks 200 | . . . . . 150 . . . . . 50 . . . . . . . Disable Machine 405 | . . 15 . . . . 30 15 . 15 30 225 . . 15 15 . 45 Destroy Structure 364 | . . 4 . . 20 . . 19 13 3 15 186 . . . 2 9 93 Partial Spotted 90 | . . . 15 . . . 15 . . . . 15 . . . . . 45 Lose Combat Pursuer 1470 | . 15 60 . 75 30 . 165 60 . . . 285 . . 105 . 45 630 Influence Decreases 5963 | 35 261 387 81 54 294 257 307 674 600 149 308 969 758 73 266 89 87 314 Entered New Map 1644 | . . 7 36 . 84 257 . 15 134 39 68 209 628 63 70 32 . 2 Time Decay 3182 | 35 181 340 35 54 190 . 263 427 286 70 120 610 120 10 100 57 67 217 Lost Part 542 | . 20 40 10 . 20 . 24 92 . . . 130 10 . 96 . 20 80 Lost Ally 535 | . . . . . . . 20 140 180 40 120 20 . . . . . 15 Purge Threat 60 | . 60 . . . . . . . . . . . . . . . . . Squads Dispatched 55 | . 2 3 . 3 . . 10 2 . . 5 13 . . 4 1 1 11 Investigation 18 | . 2 1 . 2 . . 4 . . . 3 2 . . 2 . . 2 Extermination 10 | . . . . . . . 2 . . . . 3 . . . . 1 4 Reinforcement 22 | . . 2 . 1 . . 4 2 . . 2 3 . . 2 1 . 5 Assault 2 | . . . . . . . . . . . . 2 . . . . . . Garrison 3 | . . . . . . . . . . . . 3 . . . . . . Intercept . | . . . . . . . . . . . . . . . . . . . Searches Triggered . | . . . . . . . . . . . . . . . . . . . Construction Impeded 5 | . . . . . . . 2 1 . . 1 1 . . . . . . Haulers Reinforced 1 | . . . . . . . . . . . . . . . . 1 . . Active Scanning Responses . | . . . . . . . . . . . . . . . . . . . Cargo Convoy Interrupts . | . . . . . . . . . . . . . . . . . . . Stealth | -11 -10 -9 -8 -8 -8 -8 -6 -6 -6 -6 -6 -5 -5 -5 -4 -3 -2 -1 --------- Run | Yrd Mat Mat Mat Sto Rec Scr Fac Ext Cet Arc Hub Fac Was Fac Fac Res Res Acc Distress Signals 22 | . 3 2 2 . . . . 1 2 . 1 6 . . 1 . 1 3 Communications Jammed . | . . . . . . . . . . . . . . . . . . . Distress Signals . | . . . . . . . . . . . . . . . . . . . Times Spotted 317 | . 18 25 9 10 7 . 28 28 10 4 17 61 6 1 22 . 15 56 Peak Tracking Total 18 | . 7 6 8 5 2 . 7 6 5 2 7 7 6 1 12 . 9 18 Tactical Retreats 44 | . 1 3 . 2 1 . 8 3 . . . 10 1 . 2 . 2 11 Traps | -11 -10 -9 -8 -8 -8 -8 -6 -6 -6 -6 -6 -5 -5 -5 -4 -3 -2 -1 ------- Run | Yrd Mat Mat Mat Sto Rec Scr Fac Ext Cet Arc Hub Fac Was Fac Fac Res Res Acc Traps Triggered 16 | . 3 . . 1 . . 1 3 . . 4 2 . . 1 . . 1 Indirectly . | . . . . . . . . . . . . . . . . . . . Trap Hack Attempts . | . . . . . . . . . . . . . . . . . . . Triggered . | . . . . . . . . . . . . . . . . . . . Disarmed . | . . . . . . . . . . . . . . . . . . . Reprogrammed . | . . . . . . . . . . . . . . . . . . . Reused . | . . . . . . . . . . . . . . . . . . . Traps Extracted . | . . . . . . . . . . . . . . . . . . . Installed . | . . . . . . . . . . . . . . . . . . . Triggered . | . . . . . . . . . . . . . . . . . . . Machines | -11 -10 -9 -8 -8 -8 -8 -6 -6 -6 -6 -6 -5 -5 -5 -4 -3 -2 -1 ---------- Run | Yrd Mat Mat Mat Sto Rec Scr Fac Ext Cet Arc Hub Fac Was Fac Fac Res Res Acc Machines Disabled 27 | . . 1 . . . . 2 1 . 1 2 15 . . 1 1 . 3 Max in Single Turn 7 | . . 1 . . . . 1 1 . 1 1 7 . . 1 1 . 1 Network Hub 1 | . . . . . . . . . . . 1 . . . . . . . Energy Cycler 2 | . . . . . . . . 1 . . . . . . . . . 1 Machines Repaired . | . . . . . . . . . . . . . . . . . . . Machines Dismantled . | . . . . . . . . . . . . . . . . . . . Machines Sabotaged 1 | . . . . . . . . . . . 1 . . . . . . . Overloaded Fab Kills . | . . . . . . . . . . . . . . . . . . . Hacking | -11 -10 -9 -8 -8 -8 -8 -6 -6 -6 -6 -6 -5 -5 -5 -4 -3 -2 -1 --------- Run | Yrd Mat Mat Mat Sto Rec Scr Fac Ext Cet Arc Hub Fac Was Fac Fac Res Res Acc Machines Accessed 75 | . 6 7 . 6 9 4 7 5 1 . 6 11 . . 4 1 3 5 Terminals 52 | . 5 6 . 6 4 . 5 4 1 . 6 6 . . 3 1 2 3 Fabricators 1 | . . . . . . . . . . . . 1 . . . . . . Repair Stations 4 | . . 1 . . . . 1 . . . . 1 . . 1 . . . Recycling Units 11 | . 1 . . . 5 . 1 1 . . . 2 . . . . . 1 Scanalyzers . | . . . . . . . . . . . . . . . . . . . Garrison Access 3 | . . . . . . . . . . . . 1 . . . . 1 1 Total Hacks 240 | . 17 26 . 22 30 33 27 12 1 . 11 23 . . 13 2 8 15 Successful 110 | . 7 12 . 9 16 33 12 7 1 . 3 6 . . 1 . 2 1 Failed 129 | . 10 13 . 13 14 . 15 5 . . 8 17 . . 12 2 6 14 Catastrophic 33 | . 2 2 . 3 2 . 3 1 . . 1 9 . . 1 . 5 4 Database Lockouts 1 | . . 1 . . . . . . . . . . . . . . . . Manual 86 | . 4 11 . 12 7 . 20 3 1 . 11 4 . . 11 . 2 . Terminals 156 | . 14 22 . 22 14 . 23 10 1 . 11 12 . . 11 2 5 9 Fabricators 1 | . . . . . . . . . . . . 1 . . . . . . Repair Stations 8 | . . 4 . . . . 1 . . . . 1 . . 2 . . . Recycling Units 33 | . 3 . . . 16 . 3 2 . . . 6 . . . . . 3 Scanalyzers . | . . . . . . . . . . . . . . . . . . . Garrison Access 9 | . . . . . . . . . . . . 3 . . . . 3 3 Terminal Hacks 73 | . 5 10 . 5 5 33 5 4 1 . . 3 . . . . 1 1 Record 34 | . 1 . . . . 32 . . . . . . . . . . 1 . Part Schematic 4 | . . . . 1 2 . . 1 . . . . . . . . . . Robot Analysis 2 | . . 1 . 1 . . . . . . . . . . . . . . Prototype ID Bank 9 | . 2 3 . 1 1 . 1 1 . . . . . . . . . . Open Door 2 | . . . . 1 . . . . 1 . . . . . . . . . Branch Access Points 3 | . . 1 . . . . 1 . . . . 1 . . . . . . Terminal Index 3 | . . 1 . 1 . . 1 . . . . . . . . . . . Repair Station Index 1 | . . . . . 1 . . . . . . . . . . . . . Alert Level 3 | . . 2 . . . . . 1 . . . . . . . . . . Unreport Threat 1 | . 1 . . . . . . . . . . . . . . . . . Locate Traps 1 | . 1 . . . . . . . . . . . . . . . . . Recall Extermination 1 | . . . . . . . 1 . . . . . . . . . . . Hauler Manifests 3 | . . . . . 1 . . 1 . . . 1 . . . . . . Registered Components 1 | . . . . . . . . . . . . 1 . . . . . . Zone Layout 4 | . . 2 . . . . 1 . . . . . . . . . . 1 Proto ID Catalog 1 | . . . . . . 1 . . . . . . . . . . . . Fabricator Hacks . | . . . . . . . . . . . . . . . . . . . Repair Station Hacks 3 | . . 2 . . . . . . . . . . . . 1 . . . Scan Component 1 | . . 1 . . . . . . . . . . . . . . . . Repair 1 | . . 1 . . . . . . . . . . . . . . . . Refit 1 | . . . . . . . . . . . . . . . 1 . . . Recycling Unit Hacks 10 | . 2 . . . 5 . 1 1 . . . 1 . . . . . . Retrieve Components 10 | . 2 . . . 5 . 1 1 . . . 1 . . . . . . Scanalyzer . | . . . . . . . . . . . . . . . . . . . Garrison Access Hacks . | . . . . . . . . . . . . . . . . . . . Unauthorized Hacks 24 | . . . . 4 6 . 6 2 . . 3 2 . . . . 1 . Terminals 17 | . . . . 4 1 . 5 2 . . 3 1 . . . . 1 . Track 3 | . . . . . . . . 1 . . . 1 . . . . 1 . Botnet 7 | . . . . 2 1 . 3 1 . . . . . . . . . . Operators 1 | . . . . . . . 1 . . . . . . . . . . . Skim 3 | . . . . 2 . . 1 . . . . . . . . . . . Sabotage 3 | . . . . . . . . . . . 3 . . . . . . . Fabricators . | . . . . . . . . . . . . . . . . . . . Repair Stations 2 | . . . . . . . 1 . . . . 1 . . . . . . Patch 2 | . . . . . . . 1 . . . . 1 . . . . . . Recycling Units 5 | . . . . . 5 . . . . . . . . . . . . . Tunnel 5 | . . . . . 5 . . . . . . . . . . . . . Scanalyzers . | . . . . . . . . . . . . . . . . . . . Garrison Access . | . . . . . . . . . . . . . . . . . . . Data Cores Recovered 2 | . . . . . . . . 1 . . . . . . . . . 1 Used 1 | . . . . . . . . 1 . . . . . . . . . . Hacking Detections 52 | . 5 7 . 5 5 . 6 4 . . 4 5 . . 3 1 3 4 Full Trace Events 13 | . 2 1 . 2 2 . 2 . . . . 1 . . 2 . . 1 Feedback Events 1 | . . . . . . . . . . . . 1 . . . . . . Corruption 1 | . . . . . . . . . . . . 1 . . . . . . Feedback Blocked . | . . . . . . . . . . . . . . . . . . . Robot Schematics Acquired . | . . . . . . . . . . . . . . . . . . . Robots Built . | . . . . . . . . . . . . . . . . . . . Authchips . | . . . . . . . . . . . . . . . . . . . Time . | . . . . . . . . . . . . . . . . . . . Total Robot Build Rating . | . . . . . . . . . . . . . . . . . . . Part Schematics Acquired 4 | . . . . 1 2 . . 1 . . . . . . . . . . Parts Built . | . . . . . . . . . . . . . . . . . . . Authchips . | . . . . . . . . . . . . . . . . . . . Time . | . . . . . . . . . . . . . . . . . . . Total Part Build Rating . | . . . . . . . . . . . . . . . . . . . Parts Repaired 1 | . . 1 . . . . . . . . . . . . . . . . Time 26 | . . 26 . . . . . . . . . . . . . . . . Parts Recycled . | . . . . . . . . . . . . . . . . . . . Recycled Matter . | . . . . . . . . . . . . . . . . . . . Retrieved Matter . | . . . . . . . . . . . . . . . . . . . Retrieved Components 14 | . . . . . 11 . 3 . . . . . . . . . . . Parts Scanalyzed . | . . . . . . . . . . . . . . . . . . . Part Schematics Acquired . | . . . . . . . . . . . . . . . . . . . Parts Damaged . | . . . . . . . . . . . . . . . . . . . Bothacking | -11 -10 -9 -8 -8 -8 -8 -6 -6 -6 -6 -6 -5 -5 -5 -4 -3 -2 -1 ------------ Run | Yrd Mat Mat Mat Sto Rec Scr Fac Ext Cet Arc Hub Fac Was Fac Fac Res Res Acc Used RIF Installer . | . . . . . . . . . . . . . . . . . . . Robots Hacked 2 | . . . . . . . . 2 . . . . . . . . . . Non-combat . | . . . . . . . . . . . . . . . . . . . Combat 1 | . . . . . . . . 1 . . . . . . . . . . Robot Hacks Applied 1 | . . . . . . . . 1 . . . . . . . . . . parse_system 1 | . . . . . . . . 1 . . . . . . . . . . Manual 1 | . . . . . . . . 1 . . . . . . . . . . Relay Couplers Released . | . . . . . . . . . . . . . . . . . . . Fabnet Peak Effective % . | . . . . . . . . . . . . . . . . . . . Robots Rewired 21 | . . . . . . . . 21 . . . . . . . . . . Allies Hacked . | . . . . . . . . . . . . . . . . . . . Hacks Repelled . | . . . . . . . . . . . . . . . . . . . Allies | -11 -10 -9 -8 -8 -8 -8 -6 -6 -6 -6 -6 -5 -5 -5 -4 -3 -2 -1 -------- Run | Yrd Mat Mat Mat Sto Rec Scr Fac Ext Cet Arc Hub Fac Was Fac Fac Res Res Acc Total Allies 30 | . . . . . . 1 . 24 5 . . . . . . . . . Largest Group 17 | . . . . . . 1 1 17 17 11 7 1 . . . . . . Highest-Rated Group 942 | . . . . . . 39 39 611 942 702 387 96 . . . . . . Highest-Rated Ally 159 | . . . . . . 39 39 159 159 159 96 96 . . . . . . Total Orders 1 | . . . . . . . . . . . . . . . . . . 1 EXPLORE 1 | . . . . . . . . . . . . . . . . . . 1 Ally Attacks 273 | . . . . . . . 12 102 94 23 37 5 . . . . . . Total Damage 6144 | . . . . . . . 139 1700 2450 588 1014 253 . . . . . . Kills 36 | . . . . . . . 1 13 11 2 7 2 . . . . . . Allies Corrupted 3 | . . . . . . . . . . . 2 1 . . . . . . Allies Melted . | . . . . . . . . . . . . . . . . . . . Intel | -11 -10 -9 -8 -8 -8 -8 -6 -6 -6 -6 -6 -5 -5 -5 -4 -3 -2 -1 ------- Run | Yrd Mat Mat Mat Sto Rec Scr Fac Ext Cet Arc Hub Fac Was Fac Fac Res Res Acc Active Infowar (turns) 6150 | 12 631 955 147 154 387 884 937 119 . . 152 768 . . 37 144 202 621 Optics 3784 | . . 917 147 154 387 884 386 . . . . . . . . 106 202 601 Sensors 1497 | . . . . . . . 507 119 . . . 59 . . 37 144 170 461 Terrain 216 | . . . . . . . . . . . . . . . . . . 216 Structural 2087 | . . . . 149 386 626 . . . . 152 768 . . 6 . . . Seismic 2040 | 12 631 188 147 103 . 259 430 . . . . . . . . . . 270 T.N.C. 345 | . . . . . . . . . . . . . . . . 41 202 102 Cloaking 59 | . . . . . . 3 56 . . . . . . . . . . . ECM 47 | . . . . . . . 47 . . . . . . . . . . . Robot Analysis Total 2 | . . 1 . 1 . . . . . . . . . . . . . . Derelict Logs Recovered . | . . . . . . . . . . . . . . . . . . . Drone Launches 3 | . . . . . . . . . . . . . . . . . . 3 Drone Recoveries . | . . . . . . . . . . . . . . . . . . . Exploration | -11 -10 -9 -8 -8 -8 -8 -6 -6 -6 -6 -6 -5 -5 -5 -4 -3 -2 -1 ------------- Run | Yrd Mat Mat Mat Sto Rec Scr Fac Ext Cet Arc Hub Fac Was Fac Fac Res Res Acc Turns Passed 10747 | 175 650 955 147 154 387 884 989 1782 627 155 255 1997 242 35 286 185 202 640 Spaces Moved 10437 | 90 360 451 232 225 600 1565 869 1154 249 67 139 1257 420 41 490 376 418 1434 Core 1022 | 16 5 . . . . . 312 6 . . . 82 183 . 323 28 . 67 Treads 1526 | . . . . . . . . 438 249 67 139 633 . . . . . . Legs 1068 | 74 355 336 . . . . . . . . . 303 . . . . . . Wheels 821 | . . . . . . . 111 710 . . . . . . . . . . Hover 3186 | . . 115 232 225 600 1565 446 . . . . . . . 3 . . . Flight 2814 | . . . . . . . . . . . . 239 237 41 164 348 418 1367 Fastest Speed 31 | 50 100 52 48 48 48 48 48 90 160 160 160 45 40 40 40 34 34 31 Average Speed 78 | 119 138 144 48 48 49 48 84 118 160 160 160 130 46 40 46 38 34 34 Slowest Speed 500 | 200 200 190 112 48 52 48 500 200 160 160 160 270 50 40 76 117 37 117 Overloaded Moves . | . . . . . . . . . . . . . . . . . . . Propulsion Burnouts . | . . . . . . . . . . . . . . . . . . . Robots Hopped 28 | . . . . . . . . . . . . 10 . 1 2 . 4 11 Potential Cave-ins 4 | . . . . . . . . . . . . 2 . . . . . 2 Cave-ins Triggered . | . . . . . . . . . . . . . . . . . . . Exploration Rate (%) 44 | 6 59 47 22 52 96 88 22 79 68 67 17 35 100 2 20 8 14 48 Regions Visited 18 Branch Regions 7 Pre-discovered Areas 9 | . . . . . 5 4 . . . . . . . . . . . . Known Exits Taken 7 | . . . . . . . 1 1 1 1 1 . . . . 1 1 . Unknown Exits Taken 9 | 1 1 1 1 1 1 1 . . . . . . . 1 1 . . . Scrap Searched 6 | . . . . . . 6 . . . . . . . . . . . . Spaces Dug 15 | . . . . . . . . . . . 2 1 . . . 1 3 8 Terrain Destroyed 219 | . . 4 . . 34 . . 15 1 2 6 115 . . . 1 3 38 Melee 11 | . . . . . . . . . . . . . . . . 1 3 7 Projectile 51 | . . . . . . . . 1 1 2 6 40 . . . . . 1 AOE 157 | . . 4 . . 34 . . 14 . . . 75 . . . . . 30 Terrain Rammed . | . . . . . . . . . . . . . . . . . . . Walls Destroyed . | . . . . . . . . . . . . . . . . . . . Machines Disabled . | . . . . . . . . . . . . . . . . . . . Actions | -11 -10 -9 -8 -8 -8 -8 -6 -6 -6 -6 -6 -5 -5 -5 -4 -3 -2 -1 --------- Run | Yrd Mat Mat Mat Sto Rec Scr Fac Ext Cet Arc Hub Fac Was Fac Fac Res Res Acc Total 12200 | 116 435 643 257 250 645 1700 1070 1477 479 97 153 1440 467 57 515 402 468 1529 Wait 721 | . 9 62 . 1 5 96 103 74 196 21 . 33 44 18 2 . 27 30 Move 10367 | 89 359 450 231 224 599 1564 868 1153 248 66 138 1239 419 38 485 375 409 1413 Hop 24 | . . . . . . . . . . . . 8 . 1 2 . 4 9 Pick Up 84 | 1 7 19 7 5 3 9 12 4 2 . . 7 . . . 2 5 1 Fast Attach 146 | 7 10 12 1 . 1 4 21 14 9 . 3 21 1 . 5 14 4 19 Attach 43 | . 1 4 4 1 1 1 3 3 . 1 1 7 . . 1 1 6 8 Detach 56 | . 2 7 2 . . 1 4 2 3 . . 13 . . 1 3 6 12 Swap 64 | . 4 12 1 3 10 9 5 9 3 . 1 4 . . . . . 3 Drop 127 | . 4 16 5 5 1 16 17 10 15 . . 17 1 . 1 2 4 13 Fire 378 | 19 39 60 6 11 24 . 33 63 3 9 8 86 . . 14 1 . 2 Melee 30 | . . . . . . . 1 5 . . . . . . . 4 3 17 Ram 11 | . . . . . . . 3 . . . . . 2 . 4 . . 2 Kick 2 | . . 1 . . . . . . . . . 1 . . . . . . Crush 4 | . . . . . . . . . . . 2 2 . . . . . . Escape Stasis 2 | . . . . . . . . . . . . 2 . . . . . . Rewire 141 | . . . . . 1 . . 140 . . . . . . . . . . Trap . | . . . . . . . . . . . . . . . . . . . Miscellaneous . | . . . . . . . . . . . . . . . . . . . Route ------- -11/Scrapyard -10/Materials (discovered 3 exits: *Mat x2 / [*Min]) -9/Materials (discovered 3 exits: [*Mat x2] / Min) -8/Materials -8/Storage -8/Recycling (discovered 2 exits: *Fac / *Scr) -8/Scraptown (discovered 2 exits: *Fac x2) -6/Factory (discovered 4 exits: Low x2 / *Ext x2) -6/Extension (discovered 3 exits: *Fac x2 / *Cet) -6/Cetus (discovered 2 exits: *Fac / *Arc) -6/Archives -6/Hub_04(d) (discovered 2 exits: *Fac x2) -5/Factory (discovered 2 exits: *Upp x2) -5/Waste -5/Factory -4/Factory -3/Research -2/Research (discovered 3 exits: *Acc x2 / Tes) -1/Access (discovered 2 exits: [*Sur] / *Com) To Epsilon Eridani History --------- Turn | Location | Event 2 | -11/Scrapyard | Discovered new exit (range 16) 176 | -11/Scrapyard | Entered Materials 240 | -10/Materials | Discovered new exit (range 16) 287 | -10/Materials | Discovered new exit (range 10) 318 | -10/Materials | Build established: Mutant 426 | -10/Materials | Discovered new exit (range 15) 607 | -10/Materials | Core integrity fell below 50% 826 | -10/Materials | Entered another Materials area 826 | -9/Materials | Evolved 2 slots: Propulsion x1, Utility x1 893 | -9/Materials | Central database locked down 923 | -9/Materials | Build established: Scavenger-Mutant 1088 | -9/Materials | Lost 4 parts (1p1n1u1w) 1129 | -9/Materials | Identified exit to Mines 1171 | -9/Materials | Discovered new exit (range 8) 1639 | -9/Materials | Repaired Seismic Detector 1737 | -9/Materials | Discovered new exit (range 16) 1781 | -9/Materials | Entered another Materials area 1781 | -8/Materials | Evolved 2 slots: Propulsion x1, Utility x1 1915 | -8/Materials | Discovered new exit (range 11) 1928 | -8/Materials | Entered Storage 1954 | -8/Storage | Build established: Mutant 2081 | -8/Storage | Used back door to open Recycling access 2081 | -8/Storage | Discovered new exit (range 3) 2082 | -8/Storage | Entered Recycling 2333 | -8/Recycling | Discovered new exit (range 20) 2456 | -8/Recycling | Scanned before Scraplab entrance 2462 | -8/Recycling | Discovered new exit (range 11) 2463 | -8/Recycling | Entered Scraplab 2469 | -8/Recycling | Entered Scraptown 2603 | -8/Scraptown | Discovered new exit (range 11) 2630 | -8/Scraptown | Heard Great Nut preacher, LISTEN AND RECITE! 2647 | -8/Scraptown | Visited Assassins FH 2692 | -8/Scraptown | Visited Junk Repository 2731 | -8/Scraptown | Visited UFD Registry 2731 | -8/Scraptown | Registered with UFD as "Spikelever" 2735 | -8/Scraptown | Visited Bundlers 2771 | -8/Scraptown | Visited TADAMA 2785 | -8/Scraptown | Visited Symbiants 2808 | -8/Scraptown | Visited Scrapoid Pod Storage 2833 | -8/Scraptown | Visited Research Penetration Think Tank 2850 | -8/Scraptown | Visited Science Guys 2874 | -8/Scraptown | Visited Abandonware Association 2880 | -8/Scraptown | Learned abandonware demo "MELTYB.EXE" 2890 | -8/Scraptown | Visited Cartography Club 2923 | -8/Scraptown | Found Deep Structural Scanner 2928 | -8/Scraptown | Learned location of Lower Caves (-7) 2928 | -8/Scraptown | Learned location of Armory (-4) 2928 | -8/Scraptown | Learned 8 Research zone layouts 2928 | -8/Scraptown | Learned 16 Research zone layouts 2928 | -8/Scraptown | Learned 4 Armory zone layouts 2928 | -8/Scraptown | Learned 24 Proximity Caves zone layouts 2928 | -8/Scraptown | Learned 4 Hub_04(d) zone layouts 2928 | -8/Scraptown | Learned Materials emergency access door positions 2928 | -8/Scraptown | Learned location of 1 exit from Lower Caves 2928 | -8/Scraptown | Learned location of 2 exits from Proximity Caves 2953 | -8/Scraptown | Visited Junk Repository 2971 | -8/Scraptown | Visited Scrap Suit Storage 2984 | -8/Scraptown | Visited Botcube Research 3039 | -8/Scraptown | Visited LU-1G1's Boring Crew 3046 | -8/Scraptown | Visited DA-N13 Charitable Foundation 3051 | -8/Scraptown | Found DCF Scrap (31 items) 3167 | -8/Scraptown | Found Botcube 3189 | -8/Scraptown | Botcube activated 3201 | -8/Scraptown | Botcube completed mutation into treaded form, armed with 1 gun, 1 melee weapon. 3247 | -8/Scraptown | Discovered new exit (range 3) 3274 | -8/Scraptown | Met Optimus 3274 | -8/Scraptown | Accepted into 0bPrime 3353 | -8/Scraptown | Entered Factory 3353 | -6/Factory | Accompanied by 1 ally 3353 | -6/Factory | Evolved 4 slots: Propulsion x2, Utility x2 3354 | -6/Factory | Identified exit to Lower Caves 3633 | -6/Factory | Identified exit to Extension 3643 | -6/Factory | Build established: Hacker-Mutant 3695 | -6/Factory | Lost 4 parts (1p3n) 4342 | -6/Factory | Entered Extension 4584 | -6/Extension | Build established: Scavenger-Mutant 5117 | -6/Extension | Build established: Commander-Mutant 5129 | -6/Extension | Energy Cycler disabled 5129 | -6/Extension | Rescued a captive Derelict 5130 | -6/Extension | Rescued a captive Derelict 5131 | -6/Extension | Rescued a captive Derelict 5132 | -6/Extension | Rescued a captive Derelict 5134 | -6/Extension | Rescued a captive Derelict 5142 | -6/Extension | Disrupted transfer network 5218 | -6/Extension | Spotted B-75 Beast 5252 | -6/Extension | Core integrity fell below 50% 5270 | -6/Extension | Destroyed B-75 Beast 5275 | -6/Extension | Spotted B-75 Beast 5284 | -6/Extension | Core integrity fell below 20% 5301 | -6/Extension | Lost 9 parts (1p6n2w) 5322 | -6/Extension | Destroyed B-75 Beast 5350 | -6/Extension | Lost 5 allies 5352 | -6/Extension | Discovered new exit (range 14) 5380 | -6/Extension | Rescued A7 5488 | -6/Extension | Build established: Scavenger-Mutant 6030 | -6/Extension | Build established: Commander-Mutant 6031 | -6/Extension | Discovered new exit (range 10) 6033 | -6/Extension | Discovered new exit (range 6) 6072 | -6/Extension | Identified exit to Cetus 6124 | -6/Extension | Entered Cetus 6124 | -6/Cetus | Accompanied by 17 allies (A7) 6129 | -6/Cetus | Acquired a Cetus Manufacturing Module code from A7 6164 | -6/Cetus | Spotted Cetus Guard 6164 | -6/Cetus | Spotted Cetus Guard 6166 | -6/Cetus | Spotted Cetus Guard 6169 | -6/Cetus | Spotted Cetus Guard 6173 | -6/Cetus | Allies destroyed Cetus Guard 6181 | -6/Cetus | Allies destroyed Cetus Guard 6187 | -6/Cetus | Allies destroyed Cetus Guard 6188 | -6/Cetus | Allies destroyed Cetus Guard 6215 | -6/Cetus | System corruption reached 10% 6218 | -6/Cetus | Lost 5 allies 6294 | -6/Cetus | Started Cetus Manufacturing Module 6307 | -6/Cetus | Escorted A7 to Cetus Mainframe 6319 | -6/Cetus | Manufactured an Enhanced Grunt 6344 | -6/Cetus | Manufactured an Enhanced Grunt 6369 | -6/Cetus | Manufactured an Enhanced Grunt 6394 | -6/Cetus | Manufactured an Enhanced Grunt 6419 | -6/Cetus | Manufactured an Enhanced Grunt 6450 | -6/Cetus | Discovered new exit (range 15) 6521 | -6/Cetus | Spotted Cetus Guard 6524 | -6/Cetus | Spotted Cetus Guard 6526 | -6/Cetus | Spotted Cetus Guard 6527 | -6/Cetus | Allies destroyed Cetus Guard 6529 | -6/Cetus | Allies destroyed Cetus Guard 6531 | -6/Cetus | Spotted Cetus Guard 6536 | -6/Cetus | Allies destroyed Cetus Guard 6544 | -6/Cetus | Allies destroyed Cetus Guard 6553 | -6/Cetus | Discovered new exit (range 15) 6561 | -6/Cetus | Met Revision 17 6569 | -6/Cetus | Lost 6 allies 6693 | -6/Cetus | Identified exit to Archives 6751 | -6/Cetus | Entered Archives 6751 | -6/Archives | Accompanied by 11 allies (A7) 6756 | -6/Archives | Received a hacking code to weaken MAIN.C 6862 | -6/Archives | Discovered new exit (range 15) 6885 | -6/Archives | Identified exit to Hub_04(d) 6906 | -6/Archives | Entered Hub_04(d) 6906 | -6/Hub_04(d) | Accompanied by 7 allies 7063 | -6/Hub_04(d) | Discovered new exit (range 14) 7068 | -6/Hub_04(d) | Build established: Scavenger-Mutant 7138 | -6/Hub_04(d) | Discovered new exit (range 15) 7146 | -6/Hub_04(d) | Network Hub disabled 7156 | -6/Hub_04(d) | Spotted Lightning 7157 | -6/Hub_04(d) | Spotted Lightning 7160 | -6/Hub_04(d) | Identified exit to Factory 7161 | -6/Hub_04(d) | Entered Factory 7161 | -5/Factory | Accompanied by 1 ally 7161 | -5/Factory | Evolved 2 slots: Power x1, Weapon x1 7190 | -5/Factory | Lost 4 allies 7638 | -5/Factory | Spotted B-75 Beast 7644 | -5/Factory | Destroyed B-75 Beast 7676 | -5/Factory | Build established: Scavenger-Tank 7689 | -5/Factory | Identified exit to Upper Caves 8097 | -5/Factory | Garrison activated, responded to threat 8188 | -5/Factory | Lost 3 parts (2u1w) 8361 | -5/Factory | First assault squad dispatched 8577 | -5/Factory | System corruption reached 10% 8847 | -5/Factory | Build established: Mutant 8999 | -5/Factory | Released all parts (7) 9029 | -5/Factory | Lost 4 parts (2n2w) 9158 | -5/Factory | Manually triggered Chute Trap 9158 | -5/Factory | Sucked down chute 9158 | -5/Factory | Entered Waste 9168 | -5/Waste | Spotted C-40 Crusher 9169 | -5/Waste | Spotted C-40 Crusher 9235 | -5/Waste | Spotted C-40 Crusher 9236 | -5/Waste | Spotted C-40 Crusher 9237 | -5/Waste | Spotted C-40 Crusher 9239 | -5/Waste | Spotted C-40 Crusher 9248 | -5/Waste | Crushed by Compactor (1 part destroyed, 1 dropped) 9249 | -5/Waste | Core integrity fell below 50% 9338 | -5/Waste | Core integrity fell below 20% 9385 | -5/Waste | Discovered new exit (range 12) 9400 | -5/Waste | Entered Factory 9401 | -5/Factory | Discovered new exit (range 16) 9435 | -5/Factory | Entered another Factory area 9435 | -4/Factory | Evolved 2 slots: Propulsion x1, Utility x1 9622 | -4/Factory | Core integrity fell below 50% 9643 | -4/Factory | Core integrity fell below 20% 9666 | -4/Factory | Lost 9 parts (2p3n2u2w) 9713 | -4/Factory | Discovered new exit (range 14) 9721 | -4/Factory | Entered Research 9721 | -3/Research | Evolved 2 slots: Propulsion x1, Utility x1 9742 | -3/Research | Discovered new exit (range 12) 9772 | -3/Research | Identified exit to Research 9906 | -3/Research | Entered another Research area 9906 | -2/Research | Evolved 2 slots: Propulsion x2 9907 | -2/Research | Identified exit to Access 9907 | -2/Research | Identified exit to Testing 10053 | -2/Research | Found Prototype Processor 10053 | -2/Research | Identified Spectral Analyzer 10082 | -2/Research | Spotted B-90 Cyclops 10108 | -2/Research | Entered Access 10108 | -1/Access | Evolved 2 slots: Utility x2 10505 | -1/Access | Build established: Hacker-Scout 10508 | -1/Access | Found Prototype Processor 10508 | -1/Access | Identified Exp. Core Analyzer 10558 | -1/Access | Energy Cycler disabled 10640 | -1/Access | Discovered new exit (range 9) 10642 | -1/Access | Identified exit to Command 10709 | -1/Access | Released all parts (11) 10719 | -1/Access | Core integrity fell below 50% 10738 | -1/Access | Lost 5 parts (2n3u) 10743 | -1/Access | Discovered new exit (range 6) 10745 | -1/Access | Core integrity fell below 20% 10748 | *** | Escaped! Last Messages --------------- 10719_ Slammed into R-10 Processor. 10719_ Slug penetrates R-10 Processor. 10719_ Penetrated by Slug. 10719_ Knocked back. 10721_ Penetrated by Slug. 10721_ Connecting with Terminal... >>Layout(Zone) Retrieving Zone 7F layout... Downloaded map data. 10724_ TF Node disabled. 10724_ Adv. Sensor Array tumbles out of TF Node. 10726_ Acquired Adv. Sensor Array. 10743_ The Access Shell folds into the floor. 10743_ EXIT=FOUND 10745_ Dropped Adv. Cryofiber Web. 10746_ Dropped Reaction Control System. 10746_ Dropped Enh. Nova Cannon. 10746_ Adv. Sensor Array destroyed. 10747_ Dropped Hardcell Cannon. 10747_ Dropped Great Axe. Map ----- +----------------------------------------------------+ | ??????????????????????????????????????????????? | | "??????????????????????????????????????????????? | | * "??????????????????????????????????????????????? | | """""?? ???????????????????????????????????????? | | """"" ???????????????????????????????????????? | | """"" ????????????????????????????????????????? | | ?????????????????????????????????????????? | | ???????????????????????????????????????? | | ???????????????????????????????????????? | | ???????????????????????????????????????? | | /#############???????????????????????????????????? | | #???????????????????????????????????? | | #???????????????????????????????????? | | ########### #???????????????????????????????????? | | ??????????# #???????????????????????????????????? | | ??????????# #???????????????????????????????????? | | ??????????# #???????????????????????????????????? | | ??????????# #???????????????????????????????????? | | ??????????# #?????###???????????????????????????? | | ??????????# ####### ##########??????????????????? | | ??????????# """T""" "??????????????????? | | ??????????# """ """ "??????????????????? | | ??????????# s s "??????????????????? | | ########### s s ] "??????????????????? | | ## ]!/" "??????????????????? | | ## !@" "??????????????????? | | ## "??????????????????? | | " ## "??????????????????? | | """" ## "??????????????????? | | """"" ## "??????????????????? | | """""## ####### ##########??????????????????? | | """" ## ??????###???????????????????????????? | | " ## ????????????????????????????????????? | | ## ????????????????????????????????????? | | ## ????????????????????????????????????? | | ## ????????????????????????????????????? | | ## ????????????????????????????????????? | | #? ????????????????????????????????????? | | ?????????????????????????????????????????????????? | | ?????????????????????????????????????????????????? | | ?????????????????????????????????????????????????? | | ?????????????????????????????????????????????????? | | ?????????????????????????????????????????????????? | | ?????????????????????????????????????????????????? | | ?????????????????????????????????????????????????? | | ?????????????????????????????????????????????????? | | ?????????????????????????????????????????????????? | | ?????????????????????????????????????????????????? | | ?????????????????????????????????????????????????? | | ?????????????????????????????????????????????????? | +----------------------------------------------------+ Best States ------------- Heat Dissipation 78 Energy Generation 37 Energy Capacity 540 Matter Stores 386 Matter Capacity 500 Sight Range 22 Robot Scan Range 16 Terrain Scan Range 16 Terrain Scan Density 10 ECM Strength 2 Cloak Strength 2 Additional Mass Support 9 Base Temperature (-) 200 Armor Coverage 900 Resistance: TH 15 Propulsion Shielding 66 Evasion (%) 74 Targeting Accuracy 20 Core Analysis 8 Recoil Reduction 6 Offensive Hacking 20 Defensive Hacking 20 Item Schematics ----------------- Reaction Control System | -8/Storage | Hacked Cmb. Airjet | -8/Recycling | Hacked Adv. ECM Suite | -8/Recycling | Hacked Quantum Capacitor | -6/Extension | Hacked Robot Schematics ------------------ None Fabricated ------------ Nothing Repaired ---------- Seismic Detector | 5% | -9/Materials Alien Tech Used ----------------- None Achievements -------------- None Challenges ------------ None Game ------ Seed CooledStealthScreen Manual? 0 Play Time 01:57:54 Cumulative 161.8 hours Start 2025.08.25 @ 18:12:51 End 2025.08.26 @ 00:05:58 Sessions 3 Manual Loads 0 Difficulty Rogue Special Mode None Game No. 72 Rogue 72 Adventurer 0 Explorer 0 Win Type 0 Total 5 Types 3/0/2/0/0/0/0/0/0/0 Lore% 77 Gallery% 66 Achievement% 78 Wizard Run 0 Options --------- Layout 2 ASCII 0 Keyboard 1 Movement Vi Keybinds 0 Fullscreen 1 Font 28/SwanstonBold Map View 50x52 Zoom Use 0% Tactical HUD 1 Map Filters NONE Filters NONE Steam 1 RUN: e1dd98bd-c579-4b7b-b115-b7dfe105cf93